bitfinex/quotes_ETHUSD_20240729
["timestamp","ask_amount","ask_price","bid_price","bid_amount"]
[1722264233113,2.55924152,3342.7,3342.5,2.99176]
[1722264233329,1.52312325,3342.6,3342.5,2.99176]
[1722264233527,1.52304467,3342.6,3342.5,3.59008]
[1722264233847,1.52304467,3342.6,3342.5,6.5819]
[1722264233980,0.008,3343.0,3342.7,2.9915]
[1722264234186,1.522928,3342.9,3342.8,2.99144]
[1722264234380,1.522928,3342.9,3342.7,2.9915]
[1722264234381,1.522928,3342.9,3342.7,2.99158]
[1722264234885,1.522928,3342.9,3342.7,5.98311]
[1722264235209,1.522928,3342.9,3342.7,2.99153]
[1722264236083,1.522928,3342.9,3342.5,3.59005]
[1722264236288,1.522928,3342.9,3342.5,3.64987643]
[1722264236517,1.522928,3342.9,3342.7,2.99153]
[1722264236881,1.522928,3342.9,3342.4,2.99179]
[1722264237085,1.522928,3342.9,3342.7,2.99152]
[1722264237521,1.522928,3342.9,3342.8,2.9915]
[1722264238818,2.55902118,3342.9,3342.6,0.0598273]
[1722264239020,1.522928,3342.8,3342.6,0.0598273]
[1722264239359,1.522928,3342.7,3342.6,2.99168]
[1722264239852,1.522928,3342.9,3342.6,2.99168]
[1722264240261,1.522928,3342.9,3342.7,2.99157]
[1722264240613,1.522928,3342.9,3342.7,5.98311]
[1722264240818,1.522928,3342.9,3342.7,2.99154]
[1722264241048,1.522928,3342.9,3342.6,3.05149687]
[1722264241212,1.522928,3342.9,3342.6,0.05982687]
[1722264241420,1.522928,3342.9,3342.5,2.99176]
[1722264241634,1.522928,3342.9,3342.5,3.05158709]
[1722264241844,1.522928,3342.9,3342.5,0.05982709]
[1722264242053,1.522928,3342.9,3342.5,2.99172]
[1722264242228,1.522928,3342.9,3342.6,2.99168]
[1722264242664,1.522928,3342.9,3342.5,2.99176]
[1722264242869,4.514358,3342.9,3342.1,5.99207]
[1722264243021,4.514428,3342.8,3342.3,2.99195]
[1722264243220,4.23681478,3343.1,3342.4,2.99185]
[1722264243221,1.522928,3342.7,3342.4,2.99185]
[1722264243420,1.522928,3342.6,3342.1,3.32422179]
[1722264243742,1.52302407,3342.5,3342.3,2.99188]
[1722264244067,2.99141,3342.9,3342.3,2.99188]
[1722264244266,4.23681478,3343.1,3342.3,2.99188]
[1722264244267,1.52299357,3342.8,3342.3,2.99188]
[1722264244421,1.52299357,3342.7,3342.3,2.99188]
[1722264244622,4.51472357,3342.6,3342.0,5.99217]
[1722264244851,4.51472357,3342.6,3341.9,2.4775]
[1722264244852,1.52299357,3342.5,3341.9,5.46972]
[1722264245470,1.52299357,3342.5,3342.1,2.99211]
[1722264246001,1.52313506,3342.4,3341.9,2.99226]
[1722264246137,1.52313506,3342.3,3341.9,2.99226]
[1722264246342,1.52313506,3342.2,3341.8,2.99232]
[1722264246545,1.52313506,3342.1,3341.8,2.99232]
[1722264246721,5.98381,3342.4,3341.8,2.99232]
[1722264246921,1.5231968,3342.3,3341.6,5.99252]
[1722264247150,1.03625287,3342.2,3341.6,5.9925]
[1722264247358,1.5231968,3342.1,3341.6,5.9925]
[1722264247536,1.5231968,3342.1,3341.6,5.99255]
[1722264247738,1.5231968,3342.0,3341.9,2.9923]
[1722264247979,4.23734643,3342.6,3341.9,2.9923]
[1722264248132,6.13066606,3342.5,3342.0,2.99219]
[1722264248334,2.55938792,3342.4,3341.7,2.99242]
[1722264248649,2.55938414,3342.3,3341.8,2.99234]
[1722264248849,1.52319807,3342.2,3341.6,3.0]
[1722264249040,1.52319807,3342.1,3341.7,2.99243]
[1722264249238,1.52319807,3342.0,3341.8,2.99239]
[1722264249430,1.52319807,3341.9,3341.6,5.99252]
[1722264249632,2.99211,3342.2,3341.6,5.99257]
[1722264249831,5.55164981,3342.1,3341.6,3.0]
[1722264250172,2.55955117,3342.0,3341.6,3.0]
[1722264250356,2.99213,3342.1,3341.5,3.0]
[1722264250357,1.52324118,3341.9,3341.5,3.0]
[1722264250541,1.52324118,3341.8,3341.0,2.907]
[1722264250749,2.55964139,3341.7,3341.4,2.99271]
[1722264250952,1.52324118,3341.6,3341.5,5.98525]
[1722264251258,4.23761643,3342.3,3341.7,2.99248]
[1722264251460,3.8052843,3342.2,3341.5,2.99259]
[1722264251784,2.992,3342.3,3341.5,2.99259]
[1722264251785,3.8052843,3342.1,3341.5,2.99259]
[1722264251932,2.55966787,3342.0,3341.4,0.05984842]
[1722264252126,5.08918999,3342.3,3341.6,2.99251]
[1722264252127,2.55966787,3341.9,3341.6,2.99251]
[1722264252331,1.52336579,3341.8,3341.6,2.99251]
[1722264252673,1.52336579,3341.7,3341.6,2.99251]
[1722264253178,1.24561643,3342.4,3341.9,2.99228]
[1722264253486,2.5595791,3342.3,3342.1,2.99206]
[1722264253696,2.5595791,3342.2,3342.1,2.99206]
[1722264253895,2.5595791,3342.2,3342.0,0.05984143]
[1722264254104,1.5233116,3342.1,3341.9,2.99222]
[1722264254315,1.5233116,3342.0,3341.9,2.99222]
[1722264254456,1.5233116,3342.4,3341.9,2.99222]
[1722264254662,2.55955921,3342.3,3341.9,2.99222]
[1722264254966,2.55955921,3342.3,3341.6,5.82600684]
[1722264254967,2.55955921,3342.2,3341.7,2.99241]
[1722264255191,7.54175997,3342.6,3341.7,2.99241]
[1722264255192,2.55956163,3342.1,3341.8,2.99238]
[1722264255354,1.5233116,3342.0,3341.6,2.899]
[1722264255555,1.5233116,3341.9,3341.7,2.99244]
[1722264255902,1.24561643,3342.4,3341.7,5.98486]
[1722264255903,1.5233116,3341.8,3341.7,5.98486]
[1722264256113,1.52329995,3342.3,3341.8,2.99235]
[1722264256313,1.03625807,3342.2,3341.6,2.899]
[1722264256482,1.24561643,3342.5,3342.1,2.99206]
[1722264256824,2.55953016,3342.4,3342.2,2.99202]
[1722264257029,2.55953016,3342.3,3342.0,2.99222]
[1722264257231,2.99163,3342.7,3342.0,2.99215]
[1722264257232,1.52328414,3342.2,3342.0,2.99215]
[1722264257519,4.23724643,3342.7,3342.1,2.99208]
[1722264257706,2.55928559,3342.6,3342.1,2.99208]
[1722264257909,2.55928559,3342.5,3342.1,2.99208]
[1722264258221,2.55928559,3342.4,3342.1,2.99208]
[1722264258539,2.55931701,3342.3,3342.0,2.99215]
[1722264258712,1.52313721,3342.2,3342.0,2.99215]
[1722264258874,1.52313721,3342.1,3342.0,2.99215]
[1722264259070,1.52313721,3342.1,3341.8,5.98471]
[1722264259311,2.99177,3342.5,3341.8,5.98466]
[1722264259312,1.52313721,3342.0,3341.8,5.98466]
[1722264259618,1.52313721,3341.9,3341.8,2.99232]
[1722264260113,1.52322049,3342.4,3341.9,2.99225]
[1722264260324,1.03620392,3342.3,3341.9,2.99225]
[1722264260503,2.55942364,3342.2,3341.9,2.99225]
[1722264260822,2.55942364,3342.1,3341.9,2.9923]
[1722264261004,1.52321972,3342.0,3341.9,3.00006785]
[1722264261325,1.52322021,3342.3,3341.9,0.00776785]
[1722264261475,1.03624736,3342.2,3341.9,0.00776785]
[1722264261676,1.52322021,3342.1,3341.9,0.00776785]
[1722264261875,1.52322021,3342.0,3341.9,0.00776785]
[1722264262346,1.52322021,3342.3,3341.9,0.00776785]
[1722264262632,2.55944015,3342.2,3341.9,0.00776785]
[1722264262796,1.52322021,3342.1,3341.9,0.00776785]
[1722264262977,1.52322021,3342.0,3341.9,0.00776785]
[1722264263423,1.52322021,3342.2,3341.9,0.00776785]
[1722264263620,1.52322021,3342.1,3341.9,0.00776785]
[1722264263793,2.55948094,3342.0,3341.9,0.00776785]
[1722264265393,1.52322021,3342.0,3341.9,0.00776785]
[1722264265574,1.52322021,3342.2,3341.9,0.00776785]
[1722264265776,1.24722317,3342.3,3341.9,0.00776785]
[1722264265777,2.55946659,3342.1,3341.9,0.00776785]
[1722264265991,1.52322021,3342.0,3341.9,0.00776785]
[1722264266188,1.52322021,3342.1,3341.9,0.00776785]
[1722264266389,1.52322021,3342.0,3341.9,0.00776785]
[1722264266717,2.55947494,3342.0,3341.9,0.00776785]
[1722264268224,2.55946762,3342.0,3341.9,0.00776785]
[1722264268578,1.52322021,3342.0,3341.9,0.00776785]
[1722264268778,2.55950307,3342.0,3341.9,0.00776785]
[1722264271137,5.55172307,3342.0,3341.9,0.00776785]
[1722264271427,6.68680818,3342.0,3341.9,0.00776785]
[1722264271787,5.65052532,3342.0,3341.9,0.00776785]
[1722264272081,6.68682715,3342.0,3341.9,0.00776785]
[1722264272298,3.69460715,3342.0,3341.9,0.00776785]
[1722264272584,2.55952204,3342.0,3341.9,0.00776785]
[1722264273222,5.55174204,3342.0,3341.9,0.00776785]
[1722264273783,2.55952204,3342.0,3341.9,0.00776785]
[1722264274952,1.52322021,3342.0,3341.9,0.00776785]
[1722264275136,2.5595328,3342.0,3341.9,0.00776785]
[1722264275342,6.68678533,3342.0,3341.9,0.00776785]
[1722264275648,9.40336827,3342.0,3341.9,0.00776785]
[1722264275957,10.78245919,3342.0,3341.9,0.00776785]
[1722264276109,12.02965248,3342.0,3341.9,0.00776785]
[1722264276311,13.15365919,3342.0,3341.9,0.00776785]
[1722264277209,14.71235796,3342.0,3341.9,0.00776785]
[1722264277469,16.37067796,3342.0,3341.9,0.00776785]
[1722264277667,13.37836609,3342.0,3341.9,0.00776785]
[1722264278048,10.78340035,3342.0,3341.9,0.00776785]
[1722264278355,10.38588188,3342.0,3341.9,0.00776785]
[1722264278514,13.37810188,3342.0,3341.9,0.00776785]
[1722264279863,10.38588188,3342.0,3341.9,0.00776785]
[1722264280355,11.81984191,3342.0,3341.9,0.00776785]
[1722264280558,13.37810188,3342.0,3341.9,0.00776785]
[1722264281468,13.37751529,3342.0,3341.9,0.00776785]
[1722264282864,16.36973529,3342.0,3341.9,0.00776785]
[1722264283359,17.57687478,3342.0,3341.9,0.00776785]
[1722264283571,16.01882875,3342.0,3341.9,0.00776785]
[1722264284524,17.97460674,3342.0,3341.9,0.00776785]
[1722264284749,19.01107103,3342.0,3341.9,0.00776785]
[1722264284954,20.88191012,3342.0,3341.9,0.00776785]
[1722264285171,20.88209329,3342.0,3341.9,0.00776785]
[1722264286463,22.25875016,3342.0,3341.9,0.00776785]
[1722264286758,24.12914557,3342.0,3341.9,0.00776785]
[1722264286962,22.80875016,3342.0,3341.9,0.00776785]
[1722264287170,24.67885424,3342.0,3341.9,0.00776785]
[1722264287335,23.88188826,3342.0,3341.9,0.00776785]
[1722264287779,23.8822007,3342.0,3341.9,0.00776785]
[1722264288063,24.12914342,3342.0,3341.9,0.00776785]
[1722264288360,23.8822007,3342.0,3341.9,0.00776785]
[1722264289835,24.12908846,3342.0,3341.9,0.00776785]
[1722264290029,23.8822007,3342.0,3341.9,0.00776785]
[1722264290360,24.12909638,3342.0,3341.9,0.00776785]
[1722264290752,21.13687638,3342.0,3341.9,0.00776785]
[1722264290936,20.89970575,3342.0,3341.9,0.00776785]
[1722264294181,20.89860132,3342.0,3341.9,0.00776785]
[1722264294531,19.86208646,3342.0,3341.9,0.00776785]
[1722264294731,20.89859934,3342.0,3341.9,0.00776785]
[1722264296071,23.89081934,3342.0,3341.9,0.00776785]
[1722264296754,23.88998898,3342.0,3341.9,0.00776785]
[1722264297278,22.0117762,3342.0,3341.9,0.00776785]
[1722264297645,23.88012521,3342.0,3341.9,0.00776785]
[1722264297951,22.0117762,3342.0,3341.9,0.00776785]
[1722264298641,24.43012521,3342.0,3341.9,0.00776785]
[1722264299675,23.3932458,3342.0,3341.9,0.00776785]
[1722264299879,24.42978542,3342.0,3341.9,0.00776785]
[1722264300387,17.30836453,3342.0,3341.9,0.00776785]
[1722264300535,15.45036846,3342.0,3341.9,0.00776785]
[1722264300738,16.65836846,3342.0,3341.9,0.00776785]
[1722264301043,22.06858453,3342.0,3341.9,0.00776785]
[1722264301393,20.44726504,3342.0,3341.9,0.00776785]
[1722264301541,29.04298504,3342.0,3341.9,0.00776785]
[1722264301981,24.76754973,3342.0,3341.9,0.00776785]
[1722264302203,25.80422627,3342.0,3341.9,0.00776785]
[1722264302497,17.87598921,3342.0,3341.9,0.00776785]
[1722264302645,15.90610686,3342.0,3341.9,0.00776785]
[1722264302844,13.79204897,3342.0,3341.9,0.00776785]
[1722264303155,3.77106973,3342.0,3341.9,0.00776785]
[1722264303488,3.81529899,3342.0,3341.9,0.00776785]
[1722264303700,2.56009669,3342.0,3341.9,0.00776785]
[1722264303841,1.03638978,3342.0,3341.9,0.00776785]
[1722264304046,1.03638978,3342.0,3341.9,1.21576785]
[1722264304288,1.03638978,3342.0,3341.9,1.63660164]
[1722264304496,1.03638978,3342.0,3341.9,7.08350164]
[1722264304699,1.03638978,3342.0,3341.9,2.46236784]
[1722264304844,1.03638978,3342.0,3341.9,0.00776784]
[1722264305047,2.5597082,3342.0,3341.9,0.00776784]
[1722264305355,9.78931849,3342.0,3341.9,0.00776784]
[1722264305697,8.30482312,3342.0,3341.9,0.00776784]
[1722264305997,12.21459289,3342.0,3341.9,0.00776784]
[1722264306179,17.52721289,3342.0,3341.9,0.00776784]
[1722264306500,24.26707217,3342.0,3341.9,0.00776784]
[1722264306679,27.42307217,3342.0,3341.9,0.00776784]
[1722264306993,5.98604,3341.1,3341.0,0.008]
[1722264307291,13.59899878,3341.1,3341.0,0.008]
[1722264308182,12.04449601,3341.1,3341.0,0.008]
[1722264308391,7.78594201,3341.1,3341.0,0.008]
[1722264308545,6.74950169,3341.1,3341.0,0.008]
[1722264308976,7.78620295,3341.1,3341.0,0.008]
[1722264310081,10.77922295,3341.1,3341.0,0.008]
[1722264310298,7.78620295,3341.1,3341.0,0.008]
[1722264310449,9.03010853,3341.1,3340.5,2.99355]
[1722264310648,2.56001968,3341.0,3340.6,2.99345]
[1722264310878,3.80392526,3340.9,3340.4,3.82668889]
[1722264311065,2.56001968,3340.8,3340.4,0.83310889]
[1722264311365,2.56001968,3340.7,3340.3,5.36922]
[1722264311688,1.52331842,3340.6,3340.3,5.36922]
[1722264311904,1.52331842,3340.5,3340.3,5.36922]
[1722264312047,4.2373106,3341.0,3340.3,5.36922]
[1722264312248,1.52396649,3340.9,3340.4,2.99364]
[1722264312448,1.03671033,3340.8,3340.5,0.84227288]
[1722264312658,1.52396649,3340.7,3340.5,0.84227288]
[1722264312864,1.52396649,3340.6,3340.5,0.84227288]
[1722264313183,1.52396649,3340.9,3340.5,0.84227288]
[1722264313387,1.52396649,3340.9,3340.4,2.99365]
[1722264313388,2.56066913,3340.8,3340.4,0.05986646]
[1722264313568,1.52396649,3340.7,3340.3,5.36919]
[1722264313813,1.52396649,3340.6,3340.3,5.36919]
[1722264313975,1.52396649,3340.5,3340.3,2.3755]
[1722264314281,1.52396649,3340.4,3340.3,2.3755]
[1722264314803,1.52396649,3340.6,3340.3,2.3755]
[1722264315011,1.52396649,3340.5,3340.3,2.3755]
[1722264315178,1.52396649,3340.4,3340.3,2.3755]
[1722264315375,1.52396649,3340.6,3340.3,2.3755]
[1722264315581,1.52396649,3340.6,3339.9,2.99405]
[1722264315582,1.52396649,3340.6,3339.9,2.2738]
[1722264315822,2.99379,3340.3,3339.9,2.2738]
[1722264315955,1.52396649,3340.2,3339.9,2.2738]
[1722264316402,1.52396649,3340.1,3339.9,2.2738]
[1722264316598,2.99366,3340.4,3339.9,2.2738]
[1722264316802,1.5241868,3340.3,3339.9,2.2738]
[1722264317307,4.5179368,3340.3,3339.9,2.2738]
[1722264317460,1.5241868,3340.2,3339.9,2.2738]
[1722264317798,1.5241868,3340.1,3339.9,2.2738]
[1722264317970,1.5241868,3340.0,3339.5,2.3954]
[1722264318312,2.99431,3339.7,3339.1,2.3954]
[1722264318462,4.5185568,3339.6,3339.1,2.3954]
[1722264318663,4.5186468,3339.5,3339.1,2.3954]
[1722264318861,1.5241868,3339.4,3339.1,2.3954]
[1722264319063,2.99437,3339.6,3339.1,2.3954]
[1722264319264,2.99431,3339.7,3339.1,5.39021]
[1722264319574,1.52455614,3339.6,3339.2,2.99465]
[1722264319778,4.23805039,3340.2,3339.4,2.99449]
[1722264319991,2.99421,3339.8,3339.2,2.99465]
[1722264320204,1.52450758,3339.7,3339.1,2.3954]
[1722264320409,1.52450758,3339.7,3339.1,5.39016]
[1722264320821,4.51883758,3339.7,3339.1,2.3954]
[1722264321017,4.51887758,3339.6,3339.1,2.3954]
[1722264321340,4.51913708,3339.5,3338.8,5.89703]
[1722264321630,3.74559476,3339.7,3339.0,2.9949]
[1722264321912,1.5246193,3339.6,3339.0,2.9949]
[1722264322894,2.99429,3339.7,3339.0,2.9949]
[1722264323515,2.99439,3339.6,3339.0,2.9949]
[1722264326006,3.66826039,3340.3,3339.0,4.119268]
[1722264326323,5.55557395,3340.2,3339.5,2.99438]
[1722264326622,4.51856496,3340.1,3339.4,2.99453]
[1722264326806,2.99401,3340.0,3339.4,2.99453]
[1722264327182,2.9941,3339.9,3339.2,2.99465]
[1722264327422,2.99401,3340.0,3339.2,2.99465]
[1722264327781,2.99416,3339.9,3339.2,2.99465]
[1722264328123,1.24416039,3340.6,3339.4,2.4324]
[1722264328329,1.5244441,3340.5,3340.2,2.9938]
[1722264328629,2.99365,3340.4,3339.6,5.89632]
[1722264328982,2.99314,3341.0,3339.4,5.42688]
[1722264328983,2.99405,3340.0,3339.4,5.42688]
[1722264329183,2.99378,3340.3,3339.5,2.99443]
[1722264329499,2.99398,3340.1,3339.4,2.4324]
[1722264329701,2.9941,3339.9,3339.0,5.29056]
[1722264329900,2.99424,3339.8,3339.2,2.99471]
[1722264330582,0.299378,3340.3,3339.2,2.99471]
[1722264330583,2.99406,3340.0,3339.2,2.99471]
[1722264331124,2.99392,3340.1,3339.4,2.99447]
[1722264331298,0.299378,3340.3,3339.4,0.60490503]
[1722264331509,5.98738,3340.4,3339.7,2.99426]
[1722264331811,2.99384,3340.2,3339.4,2.99453]
[1722264332496,2.99384,3340.2,3339.5,2.99444]
[1722264332708,2.99384,3340.2,3339.4,2.99452]
[1722264332942,2.99402,3340.0,3339.4,2.99452]
[1722264333096,2.99402,3340.0,3339.2,2.99468]
[1722264333419,2.9942,3339.8,3339.0,5.29057]
[1722264333628,2.9942,3339.8,3339.0,2.99483]
[1722264333860,2.99455,3339.4,3338.8,2.99504]
[1722264334151,2.99444,3339.6,3338.9,2.99493]
[1722264334309,2.99421,3339.8,3338.9,2.99493]
[1722264334310,2.99421,3339.8,3339.2,2.99467]
[1722264334641,2.99429,3339.7,3339.1,2.99481]
[1722264335308,2.99415,3339.9,3339.2,2.9947]
[1722264335619,2.99424,3339.8,3339.2,2.9947]
[1722264336939,3.8689574,3339.8,3339.0,5.98967]
[1722264337096,2.99429,3339.7,3339.0,2.99483]
[1722264337292,2.99429,3339.7,3339.0,5.98966]
[1722264337731,2.99429,3339.7,3339.1,2.9948]
[1722264338134,0.8747174,3339.8,3339.2,2.99472]
[1722264338333,1.03707733,3339.7,3339.2,2.99472]
[1722264338539,0.8747174,3339.8,3339.2,2.99472]
[1722264338733,1.42395397,3339.7,3339.2,2.99472]
[1722264338957,3.38115674,3339.7,3339.0,2.99483]
[1722264339107,1.03711803,3339.6,3339.1,2.99481]
[1722264339301,3.38115674,3339.7,3339.0,2.99483]
[1722264339498,1.37524097,3339.6,3339.0,2.99483]
[1722264339698,1.0371253,3339.5,3339.0,2.99483]
[1722264339945,0.33811567,3339.6,3339.0,2.99483]
[1722264340142,0.33811567,3339.6,3339.0,5.98967]
[1722264340343,1.03712765,3339.5,3339.0,2.99483]
[1722264340544,0.33811567,3339.6,3339.0,2.99483]
[1722264340755,0.33811567,3339.6,3339.1,2.99477]
[1722264340903,2.99412,3339.9,3339.1,2.99477]
[1722264340904,2.99423,3339.8,3339.1,2.99477]
[1722264341104,2.5616575,3339.7,3339.1,2.99477]
[1722264341309,1.0371108,3339.6,3339.1,2.99477]
[1722264341549,2.99423,3339.8,3339.1,2.99477]
[1722264341700,1.03710656,3339.7,3339.2,2.99471]
[1722264341906,1.03710656,3339.6,3339.2,2.99466]
[1722264342106,2.9942,3339.8,3339.2,2.99466]
[1722264342307,3.16044456,3339.7,3339.2,2.99466]
[1722264342662,1.03709463,3339.6,3339.2,5.98933]
[1722264342844,0.598823,3339.7,3339.2,2.99466]
[1722264343047,0.598823,3339.7,3339.2,5.98932]
[1722264343222,1.03705139,3339.6,3339.4,2.9945]
[1722264343543,2.99403,3340.0,3339.2,2.99466]
[1722264343544,2.99411,3339.9,3339.2,2.99466]
[1722264343852,2.758884,3340.1,3339.2,2.99466]
[1722264343853,2.56161512,3339.8,3339.4,2.99446]
[1722264344094,1.03709112,3339.7,3339.4,2.99448]
[1722264344268,1.03709112,3339.6,3339.2,2.99465]
[1722264344466,1.03709112,3339.5,3339.3,2.99463]
[1722264344787,2.99415,3339.9,3339.3,2.99463]
[1722264344985,2.56151249,3339.8,3339.3,2.99463]
[1722264345191,2.56151249,3339.7,3339.4,2.99454]
[1722264345374,1.03704943,3339.6,3339.5,2.9944]
[1722264345886,2.99361,3340.5,3339.5,2.9944]
[1722264346088,2.56139806,3340.3,3339.3,2.4928]
[1722264346292,2.56139806,3340.2,3339.9,2.99405]
[1722264346512,2.99361,3340.5,3339.7,2.99424]
[1722264346513,1.5243953,3340.1,3339.7,2.99424]
[1722264346713,1.03696351,3340.1,3339.7,2.99424]
[1722264346915,1.03696351,3340.0,3339.7,5.98845]
[1722264347214,1.03696351,3339.9,3339.8,2.9941]
[1722264347512,1.03696351,3339.9,3339.6,2.9943]
[1722264347713,1.03696351,3339.8,3339.7,2.99427]
[1722264348215,1.03696351,3339.8,3339.5,2.99439]
[1722264348414,1.03696351,3339.7,3339.6,2.99432]
[1722264348571,1.03696351,3340.1,3339.6,2.99432]
[1722264348766,1.52434102,3340.0,3339.5,2.99438]
[1722264348979,1.03696351,3339.9,3339.4,0.05988408]
[1722264349187,1.03696351,3339.9,3339.4,3.05436408]
[1722264349511,1.03696351,3339.8,3339.4,0.05988408]
[1722264349711,2.99376,3340.3,3339.4,3.05438408]
[1722264349712,1.68472708,3340.2,3339.4,3.05438408]
[1722264350007,5.55533065,3340.1,3339.4,3.05438408]
[1722264350305,2.99376,3340.3,3339.4,3.05438408]
[1722264350306,2.56139603,3340.0,3339.5,2.9944]
[1722264350507,2.56139603,3339.9,3339.5,2.99438]
[1722264350813,2.56139603,3339.8,3339.5,2.99438]
[1722264351011,1.03698553,3339.7,3339.4,3.05442408]
[1722264351173,1.03698553,3339.7,3339.1,5.89676]
[1722264351174,1.03698553,3339.6,3339.1,5.89676]
[1722264351370,1.03698553,3339.6,3338.9,2.3204]
[1722264351571,2.5615236,3339.5,3339.0,2.9949]
[1722264351778,2.5615236,3339.4,3339.0,2.9949]
[1722264352121,2.56153942,3339.3,3339.0,2.99486]
[1722264352280,1.03711105,3339.2,3339.0,2.99486]
[1722264352622,1.03711105,3339.2,3338.9,2.3204]
[1722264352623,2.99438,3339.6,3338.9,5.31537]
[1722264352926,2.99438,3339.6,3338.7,1.93]
[1722264352927,2.99494,3339.0,3338.7,1.93]
[1722264353075,1.52456338,3338.9,3338.7,1.93]
[1722264353424,1.0371747,3338.8,3338.7,1.93]
[1722264353718,2.99477,3339.2,3338.7,1.93]
[1722264353932,5.55689348,3339.1,3338.7,1.93]
[1722264354080,2.56205348,3339.0,3338.7,1.93]
[1722264354281,2.56205348,3338.9,3338.7,1.93]
[1722264354586,2.99484,3339.1,3338.7,1.93]
[1722264354814,2.56200057,3339.0,3338.7,1.93]
[1722264355024,1.52475337,3338.9,3338.7,1.93]
[1722264355324,2.99484,3339.1,3338.7,1.93]
[1722264355481,2.56200262,3339.0,3338.7,1.93]
[1722264355684,1.52475473,3338.9,3338.7,1.93]
[1722264355882,2.99484,3339.1,3338.7,1.93]
[1722264356116,2.56200245,3339.0,3338.7,1.93]
[1722264356414,1.52475462,3338.9,3338.7,1.93]
[1722264356631,1.52475892,3338.8,3338.2,2.4889]
[1722264356794,2.99526,3338.6,3338.2,0.00596834]
[1722264357119,1.52492654,3338.5,3338.2,0.00596834]
[1722264357292,2.99526,3338.6,3338.2,0.00596834]
[1722264357625,1.52496101,3338.5,3338.2,0.00596834]
[1722264358193,1.52496101,3338.5,3338.4,8.89288]
[1722264358399,8.55119101,3339.8,3339.1,2.99473]
[1722264358641,2.56168062,3339.7,3339.3,2.99463]
[1722264358844,2.56168062,3339.6,3339.3,2.99463]
[1722264359053,1.24119101,3339.9,3339.1,2.99473]
[1722264359054,1.52456296,3339.5,3339.1,5.98947]
[1722264359209,1.52456296,3339.4,3339.1,2.99473]
[1722264359406,1.52456296,3339.3,3339.1,2.99473]
[1722264359618,1.52456296,3339.2,3339.1,2.99473]
[1722264359796,1.52451791,3339.7,3339.2,2.99471]
[1722264360001,2.56160349,3339.6,3339.2,2.99471]
[1722264360343,2.56160349,3339.5,3339.0,2.99489]
[1722264360531,4.23539101,3339.8,3339.0,2.99489]
[1722264360532,2.56160349,3339.4,3339.1,2.99476]
[1722264360850,1.52451703,3339.3,3339.0,2.99484]
[1722264361001,1.52451703,3339.2,3339.1,2.99481]
[1722264361202,1.52451703,3339.2,3339.0,2.99488]
[1722264361432,1.52451703,3339.1,3339.0,2.99488]
[1722264361755,1.52451703,3339.5,3339.0,2.99488]
[1722264362055,1.52451703,3339.5,3339.0,5.98972]
[1722264362229,1.52451703,3339.4,3339.0,2.99484]
[1722264362400,1.52451703,3339.3,3339.0,2.99484]
[1722264362742,1.52451703,3339.2,3339.1,2.99479]
[1722264362923,1.24119101,3339.7,3339.2,2.99472]
[1722264363140,2.56159657,3339.6,3339.2,2.99472]
[1722264363315,2.56159852,3339.5,3339.2,2.99472]
[1722264363505,1.52451348,3339.4,3339.3,2.99462]
[1722264363705,1.52451348,3339.6,3339.0,3.59053324]
[1722264363921,1.52451348,3339.5,3339.2,2.99472]
[1722264364117,1.52451348,3339.4,3339.2,2.99472]
[1722264364318,1.52451348,3339.3,3339.2,2.99472]
[1722264364516,1.52451348,3339.7,3339.2,2.99472]
[1722264364726,1.52451348,3339.7,3339.0,3.05474079]
[1722264364727,2.56158806,3339.6,3339.0,3.05474079]
[1722264365008,1.52451348,3339.5,3339.1,2.99477]
[1722264365209,1.52451348,3339.4,3339.2,5.98937]
[1722264365440,1.52451348,3339.3,3339.2,6.495597]
[1722264365753,4.33997783,3340.2,3339.2,3.500937]
[1722264365754,1.24119101,3340.0,3339.2,3.500937]
[1722264365953,1.24119101,3340.0,3339.4,2.99454]
[1722264365954,2.5613745,3339.9,3339.4,2.99454]
[1722264366237,4.23521101,3340.0,3339.3,2.99457]
[1722264366238,1.52438071,3339.8,3339.3,2.99457]
[1722264366403,1.52438071,3339.7,3339.5,2.9944]
[1722264366603,1.52438071,3339.6,3339.5,2.9944]
[1722264366856,1.24119101,3340.1,3339.5,2.9944]
[1722264366857,1.24119101,3340.1,3339.7,2.99426]
[1722264367003,2.56128867,3340.0,3339.5,2.99438]
[1722264367213,1.5243295,3339.9,3339.6,2.9943]
[1722264367400,1.5243295,3339.8,3339.5,2.99438]
[1722264367722,1.5243295,3339.7,3339.6,6.048624]
[1722264367922,1.52427607,3340.1,3339.8,5.98827]
[1722264368102,1.52427375,3340.0,3339.8,2.9941]
[1722264368449,1.52427375,3339.9,3339.8,2.9941]
[1722264369615,1.52427375,3340.2,3339.8,2.9941]
[1722264369847,1.52427375,3340.1,3339.8,2.9941]
[1722264370045,1.52427375,3340.0,3339.8,2.9941]
[1722264370346,1.52427375,3339.9,3339.6,3.05423039]
[1722264370517,1.52427375,3339.8,3339.7,2.99428]
[1722264371051,1.52416751,3340.2,3340.0,2.99398]
[1722264371209,1.52422341,3340.2,3340.0,2.99398]
[1722264371408,1.52422341,3340.1,3340.0,2.99398]
[1722264371756,1.52422341,3340.1,3339.9,2.99409]
[1722264371905,1.52422341,3340.0,3339.9,3.00005864]
[1722264372105,2.99356,3340.5,3339.9,0.6054065]
[1722264372106,2.76758374,3340.3,3339.9,0.6054065]
[1722264372307,1.52428653,3340.2,3340.1,5.98784]
[1722264372509,1.52428653,3340.5,3340.1,2.90796862]
[1722264372729,1.52428653,3340.4,3340.3,5.98748]
[1722264372955,1.52397136,3340.8,3340.5,2.99353]
[1722264373164,1.5239092,3340.8,3340.5,2.99949858]
[1722264373474,1.5239092,3340.8,3340.7,8.33306]
[1722264373655,1.24329721,3341.5,3340.9,2.99314]
[1722264373967,2.56027077,3341.4,3340.9,0.00596849]
[1722264374138,1.52372187,3341.4,3340.9,0.00596848]
[1722264374325,2.99311,3341.0,3340.9,0.00596848]
[1722264374521,10.11521604,3341.0,3340.9,0.00596848]
[1722264374750,9.20921955,3341.0,3340.9,0.00596848]
[1722264374933,10.11520011,3341.0,3340.9,0.00596848]
[1722264375137,7.96753954,3341.0,3340.9,0.00596848]
[1722264375368,8.97170897,3341.0,3340.9,0.00596848]
[1722264375555,7.9351013,3341.0,3340.9,0.00596848]
[1722264375865,8.97181109,3341.0,3340.9,0.00596848]